[Event "Titled Tuesday Blitz February 14 Early 2023"]
[White "Sarkar, Justin"]
[Black "Maksimenko, Viktor"]
[WhiteFideId "2010011"]
[BlackFideId "13710478"]
[WhiteElo "2309"]
[BlackElo "2196"]
[Result "0-1"]
[Round "03"]
[TimeControl "180+2"]
[Date "2023.02.15"]
[WhiteClock "0:00:01"]
[BlackClock "0:02:24"]

1. e4 {[%clk 0:02:55]}  e5 {[%clk 0:02:59]} 2. f4 {[%clk 0:02:52]}  Bc5 {[%clk 0:02:54]} 3. Nf3 {[%clk 0:02:51]}  d6 {[%clk 0:02:54]} 4. c3 {[%clk 0:02:47]}  Nc6 {[%clk 0:02:52]} 5. d4 {[%clk 0:02:39]}  exd4 {[%clk 0:02:53]} 6. cxd4 {[%clk 0:02:38]}  Bb6 {[%clk 0:02:53]} 7. Be3 {[%clk 0:02:16]}  Nf6 {[%clk 0:02:52]} 8. Nc3 {[%clk 0:02:10]}  O-O {[%clk 0:02:50]} 9. Bd3 {[%clk 0:01:05]}  Re8 {[%clk 0:02:46]} 10. Qd2 {[%clk 0:00:39]}  Bg4 {[%clk 0:02:40]} 11. d5 {[%clk 0:00:24]}  Bxe3 {[%clk 0:02:33]} 12. Qxe3 {[%clk 0:00:24]}  Nb4 {[%clk 0:02:33]} 13. Qd4 {[%clk 0:00:03]}  c5 {[%clk 0:02:27]} 14. dxc6 {[%clk 0:00:02]}  Nxc6 {[%clk 0:02:28]} 15. Qe3 {[%clk 0:00:01]}  d5 {[%clk 0:02:24]} 0-1


[Site "https://www.chess.com"]

[Event "Titled Tuesday Blitz February 14 Early 2023"]
[White "Belov, Alexei"]
[Black "Srebrnic, Marko"]
[WhiteFideId "4128206"]
[BlackFideId "14603616"]
[WhiteElo "2421"]
[BlackElo "2366"]
[Result "1/2-1/2"]
[Round "03"]
[TimeControl "180+2"]
[Date "2023.02.15"]
[WhiteClock "0:00:18"]
[BlackClock "0:00:04"]

1. e4 {[%clk 0:03:00]}  c5 {[%clk 0:02:59]} 2. Nf3 {[%clk 0:03:00]}  a6 {[%clk 0:02:59]} 3. c4 {[%clk 0:03:00]}  g6 {[%clk 0:02:56]} 4. d4 {[%clk 0:02:59]}  cxd4 {[%clk 0:02:56]} 5. Nxd4 {[%clk 0:03:00]}  Bg7 {[%clk 0:02:56]} 6. Nc3 {[%clk 0:02:59]}  Nc6 {[%clk 0:02:56]} 7. Be3 {[%clk 0:02:58]}  e5 {[%clk 0:02:56]} 8. Nxc6 {[%clk 0:02:48]}  dxc6 {[%clk 0:02:54]} 9. Qxd8+ {[%clk 0:02:47]}  Kxd8 {[%clk 0:02:55]} 10. Bb6+ {[%clk 0:02:47]}  Ke8 {[%clk 0:02:55]} 11. O-O-O {[%clk 0:02:47]}  Be6 {[%clk 0:02:54]} 12. Na4 {[%clk 0:02:45]}  Nf6 {[%clk 0:02:52]} 13. f3 {[%clk 0:02:45]}  Nd7 {[%clk 0:02:52]} 14. Be3 {[%clk 0:02:26]}  b5 {[%clk 0:02:46]} 15. Nc5 {[%clk 0:02:25]}  Nxc5 {[%clk 0:02:45]} 16. Bxc5 {[%clk 0:02:25]}  Bf8 {[%clk 0:02:43]} 17. Bxf8 {[%clk 0:02:19]}  Kxf8 {[%clk 0:02:44]} 18. Kc2 {[%clk 0:02:15]}  Ke7 {[%clk 0:02:44]} 19. c5 {[%clk 0:02:11]}  a5 {[%clk 0:02:34]} 20. b3 {[%clk 0:01:59]}  a4 {[%clk 0:02:28]} 21. Kb2 {[%clk 0:01:59]}  axb3 {[%clk 0:02:20]} 22. axb3 {[%clk 0:01:58]}  b4 {[%clk 0:02:20]} 23. Bc4 {[%clk 0:01:44]}  Ra5 {[%clk 0:02:05]} 24. Bxe6 {[%clk 0:01:39]}  fxe6 {[%clk 0:02:06]} 25. Rc1 {[%clk 0:01:34]}  Rd8 {[%clk 0:02:01]} 26. Rhd1 {[%clk 0:01:06]}  Rxd1 {[%clk 0:02:00]} 27. Rxd1 {[%clk 0:01:06]}  Rxc5 {[%clk 0:02:00]} 28. Ra1 {[%clk 0:01:06]}  Rc3 {[%clk 0:01:45]} 29. Ra7+ {[%clk 0:01:05]}  Kd6 {[%clk 0:01:42]} 30. Rxh7 {[%clk 0:01:04]}  Re3 {[%clk 0:01:42]} 31. Kc2 {[%clk 0:00:55]}  Kc5 {[%clk 0:01:32]} 32. Rd7 {[%clk 0:00:51]}  Re2+ {[%clk 0:01:32]} 33. Rd2 {[%clk 0:00:51]}  Re1 {[%clk 0:01:13]} 34. Kd3 {[%clk 0:00:46]}  Rb1 {[%clk 0:01:11]} 35. Kc2 {[%clk 0:00:45]}  Rh1 {[%clk 0:01:11]} 36. h3 {[%clk 0:00:44]}  Rg1 {[%clk 0:01:01]} 37. Kb2 {[%clk 0:00:44]}  Kb5 {[%clk 0:01:00]} 38. Kc2 {[%clk 0:00:44]}  c5 {[%clk 0:01:00]} 39. Kb2 {[%clk 0:00:41]}  c4 {[%clk 0:00:57]} 40. bxc4+ {[%clk 0:00:41]}  Kxc4 {[%clk 0:00:58]} 41. Rc2+ {[%clk 0:00:41]}  Kd4 {[%clk 0:00:57]} 42. Kb3 {[%clk 0:00:34]}  Rb1+ {[%clk 0:00:51]} 43. Ka2 {[%clk 0:00:34]}  Rd1 {[%clk 0:00:25]} 44. Kb3 {[%clk 0:00:33]}  Kd3 {[%clk 0:00:24]} 45. Rb2 {[%clk 0:00:30]}  g5 {[%clk 0:00:12]} 46. Kxb4 {[%clk 0:00:29]}  Ke3 {[%clk 0:00:11]} 47. Kc5 {[%clk 0:00:28]}  Kf4 {[%clk 0:00:11]} 48. Rb6 {[%clk 0:00:26]}  Rd2 {[%clk 0:00:11]} 49. Rxe6 {[%clk 0:00:25]}  Rxg2 {[%clk 0:00:11]} 50. Rf6+ {[%clk 0:00:26]}  Ke3 {[%clk 0:00:11]} 51. Rf5 {[%clk 0:00:25]}  Rg3 {[%clk 0:00:11]} 52. Kd5 {[%clk 0:00:25]}  Rxh3 {[%clk 0:00:10]} 53. Kxe5 {[%clk 0:00:23]}  Rxf3 {[%clk 0:00:05]} 54. Rxg5 {[%clk 0:00:23]}  Rf8 {[%clk 0:00:05]} 55. Rg3+ {[%clk 0:00:22]}  Kf2 {[%clk 0:00:05]} 56. Rg6 {[%clk 0:00:21]}  Ke3 {[%clk 0:00:03]} 57. Rg3+ {[%clk 0:00:20]}  Kf2 {[%clk 0:00:03]} 58. Ra3 {[%clk 0:00:20]}  Re8+ {[%clk 0:00:03]} 59. Kd5 {[%clk 0:00:20]}  Rd8+ {[%clk 0:00:04]} 60. Kc6 {[%clk 0:00:19]}  Re8 {[%clk 0:00:03]} 61. Kd5 {[%clk 0:00:19]}  Rd8+ {[%clk 0:00:03]} 62. Ke6 {[%clk 0:00:18]}  Re8+ {[%clk 0:00:04]} 63. Kd5 {[%clk 0:00:18]} 1/2-1/2


[Site "https://www.chess.com"]

[Event "Titled Tuesday Blitz February 14 Early 2023"]
[White "Manukyan, Sargis V."]
[Black "Cori T., Deysi"]
[WhiteFideId "13303465"]
[BlackFideId "3801934"]
[WhiteElo "2253"]
[BlackElo "2362"]
[Result "1-0"]
[Round "03"]
[TimeControl "180+2"]
[Date "2023.02.15"]
[WhiteClock "0:00:15"]
[BlackClock "0:00:05"]

1. d4 {[%clk 0:02:59]}  g6 {[%clk 0:02:58]} 2. c4 {[%clk 0:02:59]}  Bg7 {[%clk 0:02:59]} 3. Nf3 {[%clk 0:02:58]}  d6 {[%clk 0:02:59]} 4. Nc3 {[%clk 0:02:57]}  Nd7 {[%clk 0:02:59]} 5. g3 {[%clk 0:02:56]}  e5 {[%clk 0:02:59]} 6. Bg2 {[%clk 0:02:54]}  Ne7 {[%clk 0:02:59]} 7. O-O {[%clk 0:02:53]}  O-O {[%clk 0:02:59]} 8. Rb1 {[%clk 0:02:51]}  a5 {[%clk 0:02:58]} 9. a3 {[%clk 0:02:49]}  exd4 {[%clk 0:02:57]} 10. Nxd4 {[%clk 0:02:48]}  Ne5 {[%clk 0:02:58]} 11. b3 {[%clk 0:02:44]}  N7c6 {[%clk 0:02:56]} 12. Ndb5 {[%clk 0:02:41]}  f5 {[%clk 0:02:44]} 13. Nd5 {[%clk 0:02:39]}  Rf7 {[%clk 0:02:40]} 14. h4 {[%clk 0:02:27]}  h6 {[%clk 0:02:32]} 15. Be3 {[%clk 0:02:04]}  Ng4 {[%clk 0:02:29]} 16. Bd2 {[%clk 0:01:51]}  Kh7 {[%clk 0:02:25]} 17. Qc2 {[%clk 0:01:37]}  Nd4 {[%clk 0:02:18]} 18. Nxd4 {[%clk 0:01:31]}  Bxd4 {[%clk 0:02:19]} 19. Bc3 {[%clk 0:01:30]}  Qh8 {[%clk 0:02:13]} 20. e3 {[%clk 0:01:20]}  Bxc3 {[%clk 0:02:11]} 21. Nxc3 {[%clk 0:01:21]}  Qe5 {[%clk 0:01:53]} 22. Qd3 {[%clk 0:01:13]}  Qc5 {[%clk 0:01:26]} 23. Nb5 {[%clk 0:01:03]}  Ne5 {[%clk 0:01:08]} 24. Qd5 {[%clk 0:00:58]}  Qxd5 {[%clk 0:00:41]} 25. cxd5 {[%clk 0:00:59]}  a4 {[%clk 0:00:37]} 26. b4 {[%clk 0:00:57]}  Bd7 {[%clk 0:00:34]} 27. Nxc7 {[%clk 0:00:51]}  Rc8 {[%clk 0:00:34]} 28. Ne6 {[%clk 0:00:51]}  Rc3 {[%clk 0:00:31]} 29. Ra1 {[%clk 0:00:43]}  Nd3 {[%clk 0:00:16]} 30. Nd8 {[%clk 0:00:38]}  Re7 {[%clk 0:00:15]} 31. Nxb7 {[%clk 0:00:36]}  f4 {[%clk 0:00:10]} 32. exf4 {[%clk 0:00:33]}  Bg4 {[%clk 0:00:09]} 33. Nxd6 {[%clk 0:00:32]}  Re2 {[%clk 0:00:09]} 34. Ne4 {[%clk 0:00:28]}  Rxe4 {[%clk 0:00:07]} 35. Bxe4 {[%clk 0:00:28]}  Kg7 {[%clk 0:00:07]} 36. Bxd3 {[%clk 0:00:27]}  Rxd3 {[%clk 0:00:08]} 37. Rfb1 {[%clk 0:00:22]}  Bf3 {[%clk 0:00:06]} 38. b5 {[%clk 0:00:21]}  Rxd5 {[%clk 0:00:07]} 39. b6 {[%clk 0:00:21]}  Rd7 {[%clk 0:00:07]} 40. Rb4 {[%clk 0:00:21]}  Rb7 {[%clk 0:00:04]} 41. Rab1 {[%clk 0:00:20]}  Bc6 {[%clk 0:00:03]} 42. Rc4 {[%clk 0:00:19]}  Bd5 {[%clk 0:00:01]} 43. Rc7+ {[%clk 0:00:18]}  Kf6 {[%clk 0:00:02]} 44. Rxb7 {[%clk 0:00:18]}  Bxb7 {[%clk 0:00:03]} 45. Rb4 {[%clk 0:00:19]}  Kf5 {[%clk 0:00:02]} 46. Rxa4 {[%clk 0:00:19]}  Kg4 {[%clk 0:00:03]} 47. Ra7 {[%clk 0:00:18]}  Bf3 {[%clk 0:00:03]} 48. b7 {[%clk 0:00:18]}  Bxb7 {[%clk 0:00:04]} 49. Rxb7 {[%clk 0:00:19]}  Kh3 {[%clk 0:00:04]} 50. a4 {[%clk 0:00:19]}  g5 {[%clk 0:00:05]} 51. hxg5 {[%clk 0:00:19]}  h5 {[%clk 0:00:04]} 52. g6 {[%clk 0:00:18]}  Kg4 {[%clk 0:00:04]} 53. g7 {[%clk 0:00:17]}  Kh3 {[%clk 0:00:05]} 54. g8=Q {[%clk 0:00:15]}  h4 {[%clk 0:00:05]} 55. Kf1 {[%clk 0:00:15]}  Kh2 {[%clk 0:00:05]} 56. gxh4 {[%clk 0:00:14]}  Kh3 {[%clk 0:00:05]} 57. h5 {[%clk 0:00:15]}  Kh4 {[%clk 0:00:05]} 58. h6 {[%clk 0:00:15]} 1-0


[Site "https://www.chess.com"]

[Event "Titled Tuesday Blitz February 14 Early 2023"]
[White "Pajeken, Jakob Leon"]
[Black "Chan, Kim Yew"]
[WhiteFideId "12942839"]
[BlackFideId "5717981"]
[WhiteElo "2417"]
[BlackElo "2340"]
[Result "1-0"]
[Round "03"]
[TimeControl "180+2"]
[Date "2023.02.15"]
[WhiteClock "0:01:01"]
[BlackClock "0:00:01"]

1. d4 {[%clk 0:03:00]}  Nf6 {[%clk 0:02:55]} 2. Nf3 {[%clk 0:02:58]}  d5 {[%clk 0:02:55]} 3. Bf4 {[%clk 0:02:57]}  e6 {[%clk 0:02:50]} 4. e3 {[%clk 0:02:56]}  c5 {[%clk 0:02:50]} 5. c3 {[%clk 0:02:53]}  Nc6 {[%clk 0:02:49]} 6. Nbd2 {[%clk 0:02:52]}  Bd6 {[%clk 0:02:50]} 7. Bg3 {[%clk 0:02:52]}  O-O {[%clk 0:02:49]} 8. Bd3 {[%clk 0:02:53]}  b6 {[%clk 0:02:48]} 9. Qe2 {[%clk 0:02:53]}  Bb7 {[%clk 0:02:47]} 10. Rd1 {[%clk 0:02:53]}  Qc7 {[%clk 0:02:32]} 11. e4 {[%clk 0:02:51]}  dxe4 {[%clk 0:02:23]} 12. Nxe4 {[%clk 0:02:50]}  Nxe4 {[%clk 0:02:19]} 13. Bxe4 {[%clk 0:02:43]}  Bxg3 {[%clk 0:02:04]} 14. hxg3 {[%clk 0:02:44]}  g6 {[%clk 0:02:04]} 15. Ng5 {[%clk 0:02:39]}  h5 {[%clk 0:01:40]} 16. g4 {[%clk 0:02:29]}  Qf4 {[%clk 0:01:40]} 17. Qf3 {[%clk 0:02:01]}  Qxg5 {[%clk 0:01:35]} 18. Bxc6 {[%clk 0:01:56]}  Bxc6 {[%clk 0:01:36]} 19. Qxc6 {[%clk 0:01:55]}  Qxg4 {[%clk 0:01:29]} 20. dxc5 {[%clk 0:01:53]}  Rac8 {[%clk 0:01:27]} 21. Qf3 {[%clk 0:01:52]}  Qxf3 {[%clk 0:01:21]} 22. gxf3 {[%clk 0:01:53]}  Rxc5 {[%clk 0:01:21]} 23. Rd7 {[%clk 0:01:52]}  a5 {[%clk 0:01:17]} 24. Rh4 {[%clk 0:01:49]}  Rfc8 {[%clk 0:01:13]} 25. Rb7 {[%clk 0:01:44]}  Rb5 {[%clk 0:01:07]} 26. Rf4 {[%clk 0:01:41]}  Rf8 {[%clk 0:00:35]} 27. b3 {[%clk 0:01:38]}  g5 {[%clk 0:00:28]} 28. Rd4 {[%clk 0:01:35]}  Rc8 {[%clk 0:00:21]} 29. c4 {[%clk 0:01:28]}  Rf5 {[%clk 0:00:22]} 30. Ke2 {[%clk 0:01:27]}  h4 {[%clk 0:00:21]} 31. Rxb6 {[%clk 0:01:26]}  h3 {[%clk 0:00:20]} 32. Rbd6 {[%clk 0:01:22]}  h2 {[%clk 0:00:09]} 33. Rd1 {[%clk 0:01:21]}  Kg7 {[%clk 0:00:09]} 34. Rh1 {[%clk 0:01:19]}  Rh8 {[%clk 0:00:09]} 35. Rd4 {[%clk 0:01:17]}  Rh3 {[%clk 0:00:09]} 36. Rg4 {[%clk 0:01:15]}  Kf6 {[%clk 0:00:08]} 37. Rg3 {[%clk 0:01:14]}  Re5+ {[%clk 0:00:08]} 38. Kd3 {[%clk 0:01:11]}  Rh4 {[%clk 0:00:08]} 39. Rg2 {[%clk 0:01:11]}  Rf4 {[%clk 0:00:05]} 40. Rg3 {[%clk 0:01:08]}  Rh4 {[%clk 0:00:06]} 41. a3 {[%clk 0:01:06]}  Kf5 {[%clk 0:00:02]} 42. b4 {[%clk 0:01:03]}  axb4 {[%clk 0:00:02]} 43. axb4 {[%clk 0:01:03]}  Kf4 {[%clk 0:00:01]} 44. Rg4+ {[%clk 0:01:03]}  Rxg4 {[%clk 0:00:01]} 45. fxg4 {[%clk 0:01:03]}  Kxg4 {[%clk 0:00:01]} 46. Rxh2 {[%clk 0:01:04]}  Kf3 {[%clk 0:00:01]} 47. c5 {[%clk 0:01:04]}  Re1 {[%clk 0:00:01]} 48. b5 {[%clk 0:01:02]}  Rb1 {[%clk 0:00:01]} 49. b6 {[%clk 0:01:02]}  e5 {[%clk 0:00:01]} 50. Kc4 {[%clk 0:01:01]}  f5 {[%clk 0:00:01]} 51. Kd5 {[%clk 0:01:01]}  e4 {[%clk 0:00:01]} 52. c6 {[%clk 0:01:01]} 1-0


[Site "https://www.chess.com"]

[Event "Titled Tuesday Blitz February 14 Early 2023"]
[White "Kejna, Piotr"]
[Black "Al-Tarboush, Ward"]
[WhiteFideId "21821704"]
[BlackFideId "7601450"]
[WhiteElo "2027"]
[BlackElo "2256"]
[Result "0-1"]
[Round "03"]
[TimeControl "180+2"]
[Date "2023.02.15"]
[WhiteClock "0:00:04"]
[BlackClock "0:01:20"]

1. e4 {[%clk 0:03:00]}  c5 {[%clk 0:03:00]} 2. b3 {[%clk 0:03:00]}  Nc6 {[%clk 0:02:58]} 3. Bb2 {[%clk 0:03:01]}  d6 {[%clk 0:02:58]} 4. Bb5 {[%clk 0:03:00]}  Bd7 {[%clk 0:02:58]} 5. f4 {[%clk 0:02:59]}  e6 {[%clk 0:02:58]} 6. Qe2 {[%clk 0:02:55]}  Nf6 {[%clk 0:02:57]} 7. Nf3 {[%clk 0:02:54]}  Be7 {[%clk 0:02:58]} 8. Nc3 {[%clk 0:02:51]}  a6 {[%clk 0:02:58]} 9. Bxc6 {[%clk 0:02:50]}  Bxc6 {[%clk 0:02:58]} 10. O-O-O {[%clk 0:02:46]}  b5 {[%clk 0:02:54]} 11. e5 {[%clk 0:02:41]}  b4 {[%clk 0:02:50]} 12. exf6 {[%clk 0:02:32]}  bxc3 {[%clk 0:02:49]} 13. Bxc3 {[%clk 0:02:32]}  Bxf6 {[%clk 0:02:48]} 14. f5 {[%clk 0:02:05]}  e5 {[%clk 0:02:26]} 15. d4 {[%clk 0:01:53]}  cxd4 {[%clk 0:02:16]} 16. Nxd4 {[%clk 0:01:43]}  Bd7 {[%clk 0:02:15]} 17. Nf3 {[%clk 0:01:37]}  Bxf5 {[%clk 0:02:11]} 18. Nxe5 {[%clk 0:01:30]}  O-O {[%clk 0:02:07]} 19. Qf3 {[%clk 0:01:15]}  Qc8 {[%clk 0:01:59]} 20. Nc4 {[%clk 0:01:05]}  Bg4 {[%clk 0:01:56]} 21. Qg3 {[%clk 0:00:52]}  Bxc3 {[%clk 0:01:53]} 22. Qxc3 {[%clk 0:00:31]}  Bxd1 {[%clk 0:01:53]} 23. Rxd1 {[%clk 0:00:31]}  Qc5 {[%clk 0:01:52]} 24. Rxd6 {[%clk 0:00:29]}  Rac8 {[%clk 0:01:51]} 25. Rd1 {[%clk 0:00:27]}  Rfe8 {[%clk 0:01:48]} 26. Kb2 {[%clk 0:00:23]}  h6 {[%clk 0:01:41]} 27. Qd3 {[%clk 0:00:18]}  Qg5 {[%clk 0:01:39]} 28. g3 {[%clk 0:00:17]}  Qf6+ {[%clk 0:01:39]} 29. Kb1 {[%clk 0:00:17]}  Rcd8 {[%clk 0:01:24]} 30. Qf1 {[%clk 0:00:14]}  Rxd1+ {[%clk 0:01:24]} 31. Qxd1 {[%clk 0:00:14]}  Qc3 {[%clk 0:01:21]} 32. Nd2 {[%clk 0:00:12]}  Rd8 {[%clk 0:01:20]} 33. Kc1 {[%clk 0:00:04]}  Qa1+ {[%clk 0:01:20]} 34. Nb1 {[%clk 0:00:04]}  Rxd1+ {[%clk 0:01:20]} 0-1


[Site "https://www.chess.com"]

[Event "Titled Tuesday Blitz February 14 Early 2023"]
[White "Injac, Teodora"]
[Black "Heinemann, Josefine"]
[WhiteFideId "932400"]
[BlackFideId "12900460"]
[WhiteElo "2391"]
[BlackElo "2289"]
[Result "0-1"]
[Round "03"]
[TimeControl "180+2"]
[Date "2023.02.15"]
[WhiteClock "0:00:04"]
[BlackClock "0:00:26"]

1. Nf3 {[%clk 0:03:00]}  d5 {[%clk 0:02:56]} 2. g3 {[%clk 0:03:01]}  g6 {[%clk 0:02:55]} 3. Bg2 {[%clk 0:03:00]}  Bg7 {[%clk 0:02:56]} 4. d4 {[%clk 0:03:01]}  Nf6 {[%clk 0:02:56]} 5. O-O {[%clk 0:03:01]}  O-O {[%clk 0:02:56]} 6. a4 {[%clk 0:02:57]}  Bf5 {[%clk 0:02:45]} 7. Nbd2 {[%clk 0:02:52]}  Ne4 {[%clk 0:02:42]} 8. c3 {[%clk 0:02:51]}  a5 {[%clk 0:02:38]} 9. Nh4 {[%clk 0:02:48]}  Nxd2 {[%clk 0:02:34]} 10. Bxd2 {[%clk 0:02:49]}  Bc8 {[%clk 0:02:31]} 11. e4 {[%clk 0:02:45]}  dxe4 {[%clk 0:02:30]} 12. Bxe4 {[%clk 0:02:46]}  c6 {[%clk 0:02:30]} 13. Bg2 {[%clk 0:02:35]}  Nd7 {[%clk 0:02:27]} 14. Re1 {[%clk 0:02:01]}  e5 {[%clk 0:02:16]} 15. Be3 {[%clk 0:01:49]}  exd4 {[%clk 0:02:14]} 16. Bxd4 {[%clk 0:01:49]}  Bxd4 {[%clk 0:01:50]} 17. Qxd4 {[%clk 0:01:49]}  Nf6 {[%clk 0:01:50]} 18. Qf4 {[%clk 0:01:21]}  Kg7 {[%clk 0:01:45]} 19. Rad1 {[%clk 0:01:18]}  Qb6 {[%clk 0:01:45]} 20. Rd6 {[%clk 0:00:58]}  Nh5 {[%clk 0:01:08]} 21. Qe5+ {[%clk 0:00:56]}  Kg8 {[%clk 0:01:04]} 22. h3 {[%clk 0:00:24]}  Qxb2 {[%clk 0:00:56]} 23. g4 {[%clk 0:00:23]}  Ng7 {[%clk 0:00:55]} 24. Qf6 {[%clk 0:00:17]}  Be6 {[%clk 0:00:52]} 25. Qf4 {[%clk 0:00:06]}  Qxc3 {[%clk 0:00:49]} 26. Nf3 {[%clk 0:00:06]}  Bd5 {[%clk 0:00:46]} 27. Rxd5 {[%clk 0:00:03]}  cxd5 {[%clk 0:00:45]} 28. Qh6 {[%clk 0:00:03]}  Ne6 {[%clk 0:00:41]} 29. Kh2 {[%clk 0:00:03]}  Qg7 {[%clk 0:00:39]} 30. Qd2 {[%clk 0:00:04]}  d4 {[%clk 0:00:35]} 31. Ne5 {[%clk 0:00:04]}  Rfe8 {[%clk 0:00:31]} 32. f4 {[%clk 0:00:04]}  Rad8 {[%clk 0:00:29]} 33. Bxb7 {[%clk 0:00:04]}  d3 {[%clk 0:00:28]} 34. Be4 {[%clk 0:00:04]}  Nxf4 {[%clk 0:00:26]} 35. Qxf4 {[%clk 0:00:04]}  Qxe5 {[%clk 0:00:26]} 0-1


[Site "https://www.chess.com"]

[Event "Titled Tuesday Blitz February 14 Early 2023"]
[White "Hirneise, Jens"]
[Black "Miszler, Levente"]
[WhiteFideId "24614734"]
[BlackFideId "763276"]
[WhiteElo "2277"]
[BlackElo "2271"]
[Result "1-0"]
[Round "03"]
[TimeControl "180+2"]
[Date "2023.02.15"]
[WhiteClock "0:00:09"]
[BlackClock "0:00:01"]

1. Nf3 {[%clk 0:03:00]}  Nf6 {[%clk 0:02:59]} 2. b3 {[%clk 0:03:01]}  g6 {[%clk 0:03:00]} 3. Bb2 {[%clk 0:03:01]}  Bg7 {[%clk 0:03:00]} 4. g3 {[%clk 0:03:02]}  O-O {[%clk 0:03:01]} 5. Bg2 {[%clk 0:03:03]}  b6 {[%clk 0:03:00]} 6. O-O {[%clk 0:03:03]}  Bb7 {[%clk 0:03:00]} 7. d3 {[%clk 0:03:02]}  c5 {[%clk 0:03:00]} 8. e4 {[%clk 0:03:02]}  d5 {[%clk 0:03:00]} 9. e5 {[%clk 0:03:01]}  Nfd7 {[%clk 0:02:59]} 10. Re1 {[%clk 0:03:01]}  e6 {[%clk 0:02:59]} 11. Nbd2 {[%clk 0:03:01]}  Nc6 {[%clk 0:03:00]} 12. Qe2 {[%clk 0:02:57]}  Qc7 {[%clk 0:02:58]} 13. h4 {[%clk 0:02:56]}  Rae8 {[%clk 0:02:46]} 14. h5 {[%clk 0:02:56]}  f6 {[%clk 0:02:45]} 15. exf6 {[%clk 0:02:47]}  Nxf6 {[%clk 0:02:43]} 16. hxg6 {[%clk 0:02:43]}  hxg6 {[%clk 0:02:42]} 17. Nh4 {[%clk 0:02:42]}  Kh7 {[%clk 0:02:37]} 18. Ndf3 {[%clk 0:02:38]}  Bh6 {[%clk 0:02:22]} 19. Bc1 {[%clk 0:02:29]}  Bxc1 {[%clk 0:02:15]} 20. Raxc1 {[%clk 0:02:30]}  e5 {[%clk 0:02:11]} 21. Ng5+ {[%clk 0:02:23]}  Kg7 {[%clk 0:02:09]} 22. c3 {[%clk 0:02:08]}  Bc8 {[%clk 0:02:06]} 23. f4 {[%clk 0:02:02]}  exf4 {[%clk 0:01:58]} 24. Qc2 {[%clk 0:01:42]}  fxg3 {[%clk 0:01:46]} 25. d4 {[%clk 0:01:41]}  Ne4 {[%clk 0:01:41]} 26. Bxe4 {[%clk 0:01:34]}  dxe4 {[%clk 0:01:28]} 27. Rxe4 {[%clk 0:01:33]}  Rxe4 {[%clk 0:00:53]} 28. Qxe4 {[%clk 0:01:34]}  Qd6 {[%clk 0:00:43]} 29. d5 {[%clk 0:01:23]}  Qf6 {[%clk 0:00:37]} 30. Nhf3 {[%clk 0:01:10]}  Ne7 {[%clk 0:00:18]} 31. Re1 {[%clk 0:01:04]}  Nf5 {[%clk 0:00:18]} 32. c4 {[%clk 0:00:51]}  Bd7 {[%clk 0:00:18]} 33. Kg2 {[%clk 0:00:40]}  Re8 {[%clk 0:00:18]} 34. Ne6+ {[%clk 0:00:21]}  Bxe6 {[%clk 0:00:15]} 35. dxe6 {[%clk 0:00:22]}  Re7 {[%clk 0:00:11]} 36. Re2 {[%clk 0:00:18]}  g5 {[%clk 0:00:06]} 37. Qg4 {[%clk 0:00:15]}  Kg6 {[%clk 0:00:06]} 38. Ne5+ {[%clk 0:00:14]}  Kg7 {[%clk 0:00:06]} 39. Nd7 {[%clk 0:00:12]}  Qd4 {[%clk 0:00:05]} 40. Qxg5+ {[%clk 0:00:10]}  Kh7 {[%clk 0:00:02]} 41. Qxf5+ {[%clk 0:00:10]}  Kg7 {[%clk 0:00:01]} 42. Qf8+ {[%clk 0:00:09]} 1-0


[Site "https://www.chess.com"]

[Event "Titled Tuesday Blitz February 14 Early 2023"]
[White "Mushini Ajay"]
[Black "Alinasab, Mobina"]
[WhiteFideId "35066188"]
[BlackFideId "12528897"]
[WhiteElo "2310"]
[BlackElo "2347"]
[Result "1-0"]
[Round "03"]
[TimeControl "180+2"]
[Date "2023.02.15"]
[WhiteClock "0:00:15"]
[BlackClock "0:00:02"]

1. d4 {[%clk 0:02:59]}  Nf6 {[%clk 0:02:51]} 2. c4 {[%clk 0:02:58]}  e6 {[%clk 0:02:51]} 3. Nf3 {[%clk 0:02:58]}  b6 {[%clk 0:02:50]} 4. g3 {[%clk 0:02:57]}  Bb7 {[%clk 0:02:51]} 5. Bg2 {[%clk 0:02:58]}  c5 {[%clk 0:02:50]} 6. d5 {[%clk 0:02:56]}  d6 {[%clk 0:02:49]} 7. O-O {[%clk 0:02:53]}  e5 {[%clk 0:02:48]} 8. Nc3 {[%clk 0:02:52]}  Be7 {[%clk 0:02:42]} 9. Nh4 {[%clk 0:02:50]}  O-O {[%clk 0:02:41]} 10. e4 {[%clk 0:02:48]}  Re8 {[%clk 0:02:14]} 11. Nf5 {[%clk 0:02:43]}  Bf8 {[%clk 0:02:14]} 12. g4 {[%clk 0:02:41]}  g6 {[%clk 0:02:12]} 13. Nh6+ {[%clk 0:02:38]}  Kg7 {[%clk 0:02:10]} 14. Qf3 {[%clk 0:02:33]}  Qe7 {[%clk 0:01:59]} 15. h4 {[%clk 0:01:43]}  Ng8 {[%clk 0:01:54]} 16. Bg5 {[%clk 0:01:35]}  f6 {[%clk 0:01:51]} 17. Nxg8 {[%clk 0:01:32]}  Kxg8 {[%clk 0:01:51]} 18. Qxf6 {[%clk 0:01:30]}  Qxf6 {[%clk 0:01:48]} 19. Bxf6 {[%clk 0:01:31]}  h6 {[%clk 0:01:41]} 20. f4 {[%clk 0:01:02]}  Nd7 {[%clk 0:00:56]} 21. fxe5 {[%clk 0:00:57]}  dxe5 {[%clk 0:00:57]} 22. Nb5 {[%clk 0:00:52]}  Rec8 {[%clk 0:00:37]} 23. g5 {[%clk 0:00:49]}  a6 {[%clk 0:00:24]} 24. Nc3 {[%clk 0:00:37]}  Re8 {[%clk 0:00:12]} 25. Bh3 {[%clk 0:00:33]}  Nxf6 {[%clk 0:00:11]} 26. Rxf6 {[%clk 0:00:34]}  Bg7 {[%clk 0:00:08]} 27. Rxb6 {[%clk 0:00:32]}  Bc8 {[%clk 0:00:07]} 28. Bxc8 {[%clk 0:00:31]}  Raxc8 {[%clk 0:00:07]} 29. Rxg6 {[%clk 0:00:30]}  hxg5 {[%clk 0:00:07]} 30. hxg5 {[%clk 0:00:25]}  Rf8 {[%clk 0:00:08]} 31. Rf1 {[%clk 0:00:24]}  Rf4 {[%clk 0:00:05]} 32. Rxf4 {[%clk 0:00:22]}  exf4 {[%clk 0:00:06]} 33. e5 {[%clk 0:00:23]}  Kh7 {[%clk 0:00:04]} 34. Rf6 {[%clk 0:00:20]}  Bxf6 {[%clk 0:00:02]} 35. gxf6 {[%clk 0:00:21]}  Kg6 {[%clk 0:00:03]} 36. Ne4 {[%clk 0:00:19]}  Re8 {[%clk 0:00:03]} 37. f7 {[%clk 0:00:16]}  Rh8 {[%clk 0:00:01]} 38. e6 {[%clk 0:00:16]}  Kg7 {[%clk 0:00:02]} 39. Nxc5 {[%clk 0:00:15]}  Rh5 {[%clk 0:00:01]} 40. Nd7 {[%clk 0:00:15]}  Rf5 {[%clk 0:00:02]} 41. f8=Q+ {[%clk 0:00:15]} 1-0


[Site "https://www.chess.com"]